fUST/lending_fUST_20260107
["ID","MTS","AMOUNT","RATE_DAILY","PERIOD"]
[400616162,1767745843426,-500.0,0.00024582,2]
[400616163,1767745843435,-31810.98,0.000246,3]
[400616164,1767745843445,-156710.90453851,0.0002465,2]
[400616165,1767745843454,-513.75227377,0.0002465,2]
[400616166,1767745843463,-151.0,0.0002465,2]
[400616167,1767745843472,-151.0,0.0002465,2]
[400616168,1767745843482,-151.0,0.0002465,2]
[400616169,1767745843492,-151.0,0.0002465,2]
[400616170,1767745843503,-151.0,0.0002465,2]
[400616171,1767745843513,-151.0,0.0002465,2]
[400616172,1767745843522,-900.0,0.00024658,2]
[400616173,1767745843532,-200.0,0.00024658,2]
[400616174,1767745843541,-380.0,0.00024658,2]
[400616175,1767745843550,-500.0,0.00024658,2]
[400616176,1767745843559,-659.0,0.00024679,2]
[400616177,1767745843568,-2362.32,0.000247,7]
[400616178,1767745843578,-659.0,0.00024754,2]
[400616179,1767745843588,-2000.0,0.00024762,7]
[400616180,1767745843598,-16820.33315327,0.00024774,2]
[400616181,1767745843608,-500.0,0.00024795,2]
[400616182,1767745843618,-415556.43095,0.000248,2]
[400616183,1767745843629,-151.0,0.000248,7]
[400616184,1767745843639,-191.004961,0.000248,7]
[400616185,1767745843649,-151.0,0.000248,7]
[400616186,1767745843660,-151.0,0.000248,7]
[400616187,1767745843669,-151.0,0.000248,7]
[400616188,1767745843679,-153.772571,0.000248,7]
[400616189,1767745843688,-189.018412,0.000248,7]
[400616190,1767745843697,-189.018412,0.000248,7]
[400616191,1767745843706,-4000.0,0.000248,7]
[400616192,1767745843715,-189.018412,0.000248,7]
[400616193,1767745843725,-4000.0,0.000248,7]
[400616194,1767745843734,-189.018412,0.000248,7]
[400616195,1767745843747,-4000.0,0.000248,7]
[400616196,1767745843756,-4000.0,0.000248,7]
[400616197,1767745843765,-151.0,0.000248,7]
[400616198,1767745843774,-597.414182,0.000248,7]
[400616199,1767745843784,-597.414182,0.000248,7]
[400616200,1767745843793,-597.414182,0.000248,7]
[400616201,1767745843804,-151.0,0.000248,7]
[400616202,1767745843816,-597.414182,0.000248,7]
[400616203,1767745843826,-659.0,0.00024859,2]
[400616204,1767745843836,-631081.21536,0.000249,2]
[400616205,1767745843845,-151.0,0.000249,7]
[400616206,1767745843854,-151.0,0.000249,7]
[400616207,1767745843866,-151.0,0.000249,7]
[400616208,1767745843876,-151.0,0.000249,7]
[400616209,1767745843885,-151.0,0.000249,7]
[400616210,1767745843894,-151.0,0.000249,7]
[400616211,1767745843903,-500.0,0.00024932,2]
[400616212,1767745843913,-659.0,0.00024989,2]
[400616213,1767745843923,-111528.65958939,0.00025,15]
[400616214,1767745843932,-1084.88588646,0.00025,2]
[400616215,1767745843942,-11299.51643052,0.00025,2]
[400616216,1767745843951,-2673.15322453,0.00025,2]
[400616217,1767745843960,-10364.0,0.00025,2]
[400616218,1767745843970,-500.0,0.00025,2]
[400616219,1767745843979,-300.0,0.00025,30]
[400616220,1767745843988,-1188.6506679,0.00025,2]
[400616221,1767745843997,-758.94232624,0.00025,2]
[400616222,1767745844007,-1018.0,0.00025,2]
[400616223,1767745844016,-312.0,0.00025067,2]
[400616224,1767745844025,-500.0,0.00025069,2]
[400616225,1767745844034,-579.7994531,0.000252,5]
[400616226,1767745844043,-250.0,0.00025205,2]
[400616227,1767745844053,-880.39814706,0.00025205,2]
[400616228,1767745844062,-500.0,0.00025206,2]
[400616229,1767745844071,-2100.0,0.00025278,7]
[400616230,1767745844080,-1032.0,0.00025305,2]
[400616231,1767745844090,-239.892767,0.00025342,2]
[400616232,1767745844099,-500.0,0.00025343,2]
[400616233,1767745844109,-659.0,0.00025371,2]
[400616234,1767745844118,-900.0,0.00025469,3]
[400616235,1767745844128,-500.0,0.0002548,2]
[400616236,1767745844138,-1000.0,0.000255,2]
[400616237,1767745844147,-500.0,0.0002555,7]
[400616238,1767745844157,-500.0,0.00025617,2]
[400616239,1767745844166,-659.0,0.00025618,7]
[400616240,1767745844176,-2000.0,0.00025659,7]
[400616241,1767745844185,-1032.0,0.00025752,2]
[400616242,1767745844195,-350.0,0.00025753,2]
[400616243,1767745844204,-500.0,0.00025754,2]
[400616244,1767745844213,-2100.0,0.00025795,7]
[400616245,1767745844223,-2994.20989521,0.00025861,22]
[400616246,1767745844232,-249.6,0.00025875,2]
[400616247,1767745844242,-504.0,0.00025891,2]
[400616248,1767745844251,-659.0,0.00025913,2]
[400616249,1767745844260,-1032.0,0.00025928,2]
[400616250,1767745844269,-659.0,0.00025994,2]
[400616251,1767745844278,-7324.57125817,0.00026,2]
[400616252,1767745844295,-800.04634813,0.00026,2]
[400616253,1767745844306,-14340.6923937,0.00026,2]
[400616254,1767745844316,-1683.72,0.00026,30]
[400616255,1767745844356,-6795.80425626,0.00026,10]
[400616256,1767745844367,-30362.89421882,0.00026,10]
[400616257,1767745844408,-1144.60886202,0.00026,10]
[400616258,1767745844419,-1462.56622869,0.00026,10]
[400616259,1767745844428,-529.55716524,0.00026,2]
[400616260,1767745844438,-1894.61845953,0.00026,30]
[400616261,1767745844520,237.32,0.00030137,120]
[400616270,1767745846488,-1917.66666667,0.00016537,2]
[400616283,1767745849578,-3641.99844341,0.00016537,2]
[400616290,1767746020670,250.94,0.0001,2]
[400616291,1767746022561,250.94,0.000102,2]
[400616292,1767746024438,250.94,0.000104,2]
[400616295,1767746090749,-250.94,0.000106,2]
[400616301,1767746204837,167.62,0.0001,2]
[400616302,1767746206857,167.62,0.000102,2]
[400616303,1767746208644,167.62,0.000104,2]
[400616326,1767746745450,-300.0,0.00012328,2]
[400616327,1767746745477,-300.0,0.00012328,2]
[400616328,1767746745502,-300.0,0.00012328,2]
[400616329,1767746745529,-300.0,0.00012328,2]
[400616330,1767746745557,-437.0,0.00012328,2]
[400616331,1767746745585,-160.75085937,0.00012328,2]
[400616332,1767746745612,-515.98,0.00012329,2]
[400616333,1767746745639,-429.98,0.00012329,2]
[400616334,1767746745666,-358.32,0.00012329,2]
[400616335,1767746745693,-298.6,0.00012329,2]
[400616336,1767746745719,-248.83,0.00012329,2]
[400616337,1767746745746,-207.36,0.00012329,2]
[400616338,1767746745772,-172.8,0.00012329,2]
[400616339,1767746745798,-864.04,0.00012329,2]
[400616340,1767746747930,-500.0,0.00012572,2]
[400616341,1767746747957,-500.0,0.00012572,2]
[400616342,1767746747986,-651.30541158,0.00012572,2]
[400616343,1767746748019,-500.0,0.00012572,2]
[400616344,1767746748048,-500.0,0.00012572,2]
[400616345,1767746748076,-401.16697305,0.00012572,2]
[400616346,1767746748105,-500.0,0.00012572,2]
[400616347,1767746748133,-500.0,0.00012572,2]
[400616348,1767746748161,-500.0,0.00012572,2]
[400616349,1767746748190,-395.06523074,0.00012572,2]
[400616350,1767746748578,-104.93476926,0.00012572,2]
[400616351,1767746748612,-500.0,0.00012572,2]
[400616352,1767746748642,-500.0,0.00012572,2]
[400616353,1767746748672,-500.0,0.00012572,2]
[400616354,1767746748701,-500.0,0.00012572,2]
[400616355,1767746748732,-500.0,0.00012572,2]
[400616356,1767746748761,-500.0,0.00012572,2]
[400616357,1767746748790,-500.0,0.00012572,2]
[400616358,1767746748818,-500.0,0.00012572,2]
[400616359,1767746748848,-500.0,0.00012572,2]
[400616360,1767746748877,-290.14046148,0.00012572,2]
[400616361,1767746749112,-209.85953852,0.00012572,2]
[400616362,1767746749147,-500.0,0.00012572,2]
[400616363,1767746749178,-500.0,0.00012572,2]
[400616364,1767746749208,-500.0,0.00012572,2]
[400616365,1767746749237,-500.0,0.00012572,2]
[400616366,1767746749267,-500.0,0.00012572,2]
[400616367,1767746749298,-500.0,0.00012572,2]
[400616368,1767746749328,-500.0,0.00012572,2]
[400616369,1767746749357,-500.0,0.00012572,2]
[400616370,1767746749385,-500.0,0.00012572,2]
[400616371,1767746749415,-80.29092296,0.00012572,2]
[400616372,1767746754318,-419.70907704,0.00012572,2]
[400616373,1767746754349,-500.0,0.00012572,2]
[400616374,1767746754378,-500.0,0.00012572,2]
[400616375,1767746754408,-500.0,0.00012572,2]
[400616376,1767746754439,-500.0,0.00012572,2]
[400616377,1767746754470,-500.0,0.00012572,2]
[400616378,1767746754503,-500.0,0.00012572,2]
[400616379,1767746754535,-500.0,0.00012572,2]
[400616380,1767746754565,-500.0,0.00012572,2]
[400616381,1767746754594,-500.0,0.00012572,2]
[400616383,1767746800021,-300.0,0.00012571,2]
[400616384,1767746800053,-500.0,0.00012572,2]
[400616385,1767746800084,-500.0,0.00012572,2]
[400616386,1767746800116,-500.0,0.00012572,2]
[400616387,1767746800145,-221.15141693,0.00012572,2]
[400616388,1767746800175,-500.0,0.00012572,2]
[400616389,1767746800204,-500.0,0.00012572,2]
[400616390,1767746800236,-500.0,0.00012572,2]
[400616391,1767746800265,-280.23673036,0.00012572,2]
[400616392,1767746800296,-500.0,0.00012572,2]
[400616393,1767746800325,-500.0,0.00012572,2]
[400616394,1767746800572,-500.0,0.00012572,2]
[400616395,1767746800604,-500.0,0.00012572,2]
[400616396,1767746800634,-500.0,0.00012572,2]
[400616397,1767746800663,-500.0,0.00012572,2]
[400616398,1767746800691,-500.0,0.00012572,2]
[400616399,1767746800720,-500.0,0.00012572,2]
[400616400,1767746800749,-500.0,0.00012572,2]
[400616401,1767746800777,-500.0,0.00012572,2]
[400616402,1767746800804,-500.0,0.00012572,2]
[400616403,1767746800831,-500.0,0.00012572,2]
[400616406,1767746818470,-500.0,0.00012572,2]
[400616407,1767746818500,-500.0,0.00012572,2]
[400616408,1767746818531,-500.0,0.00012572,2]
[400616409,1767746818563,-500.0,0.00012572,2]
[400616410,1767746818593,-500.0,0.00012572,2]
[400616411,1767746818623,-500.0,0.00012572,2]
[400616412,1767746818652,-500.0,0.00012572,2]
[400616413,1767746818680,-400.0,0.00012572,2]
[400616414,1767746818708,-500.0,0.00012572,2]
[400616415,1767746818921,-500.0,0.00012572,2]
[400616426,1767746853016,-300.0,0.00012571,2]
[400616427,1767746853100,-7880.13460949,0.00012572,2]
[400616428,1767746956911,150.5,0.000301,120]
[400616431,1767746999439,332.37,0.00030136,120]
[400616432,1767747012960,-709.08274893,0.00012444,2]
[400616433,1767747012988,-596.0,0.00012444,2]
[400616434,1767747013015,-300.0,0.0001257,2]
[400616435,1767747013044,-300.0,0.0001257,2]
[400616436,1767747013071,-300.0,0.0001257,2]
[400616437,1767747013253,-500.0,0.00012571,2]
[400616438,1767747013284,-500.0,0.00012571,2]
[400616439,1767747013316,-500.0,0.00012571,2]
[400616440,1767747013345,-500.0,0.00012571,2]
[400616441,1767747013375,-500.0,0.00012571,2]
[400616442,1767747013405,-219.80042926,0.00012571,2]
[400616443,1767747013613,-150.24364362,0.00012571,2]
[400616444,1767747022201,332.37,0.00030136,120]
[400616557,1767747036022,332.37,0.00030136,120]
[400616630,1767747038811,-300.0,0.0001257,2]
[400616632,1767747038820,-50000.0,0.00012571,2]
[400616634,1767747038831,-349.75635638,0.00012571,2]
[400616636,1767747038840,-500.0,0.00012571,2]
[400616638,1767747038850,-500.0,0.00012571,2]
[400616640,1767747038859,-556.05962021,0.00012571,2]
[400616642,1767747038868,-592.36016767,0.00012571,2]
[400616644,1767747038879,-500.0,0.00012571,2]
[400616646,1767747038888,-500.0,0.00012571,2]
[400616648,1767747038897,-202.66781667,0.00012571,2]
[400616650,1767747038907,-500.0,0.00012571,2]
[400616652,1767747038915,-500.0,0.00012571,2]
[400616654,1767747038924,-500.0,0.00012571,2]
[400616656,1767747038934,-500.0,0.00012571,2]
[400616658,1767747038944,-500.0,0.00012571,2]
[400616660,1767747038953,-500.0,0.00012571,2]
[400616662,1767747038962,-500.0,0.00012571,2]
[400616664,1767747038972,-500.0,0.00012571,2]
[400616666,1767747038982,-275.99009104,0.00012571,2]
[400616668,1767747038991,-500.0,0.00012571,2]
[400616669,1767747039000,-500.0,0.00012571,2]
[400616671,1767747039010,-500.0,0.00012571,2]
[400616673,1767747039020,-500.0,0.00012571,2]
[400616676,1767747039029,-500.0,0.00012571,2]
[400616677,1767747039039,-500.0,0.00012571,2]
[400616679,1767747039048,-500.0,0.00012571,2]
[400616682,1767747039058,-500.0,0.00012571,2]
[400616684,1767747039068,-500.0,0.00012571,2]
[400616686,1767747039078,-500.0,0.00012571,2]
[400616687,1767747039088,-500.0,0.00012571,2]
[400616690,1767747039098,-500.0,0.00012571,2]
[400616691,1767747039111,-500.0,0.00012571,2]
[400616693,1767747039120,-500.0,0.00012571,2]
[400616696,1767747039130,-500.0,0.00012571,2]
[400616697,1767747039140,-500.0,0.00012571,2]
[400616700,1767747039151,-500.0,0.00012571,2]
[400616702,1767747039160,-500.0,0.00012571,2]
[400616703,1767747039170,-500.0,0.00012571,2]
[400616706,1767747039180,-500.0,0.00012571,2]
[400616708,1767747039192,-500.0,0.00012571,2]
[400616710,1767747039202,-500.0,0.00012571,2]
[400616712,1767747039211,-500.0,0.00012571,2]
[400616714,1767747039221,-500.0,0.00012571,2]
[400616716,1767747039230,-500.0,0.00012571,2]
[400616718,1767747039239,-500.0,0.00012571,2]
[400616720,1767747039248,-500.0,0.00012571,2]
[400616722,1767747039258,-500.0,0.00012571,2]
[400616724,1767747039267,-500.0,0.00012571,2]
[400616726,1767747039276,-500.0,0.00012571,2]
[400616727,1767747039286,-500.0,0.00012571,2]
[400616730,1767747039296,-500.0,0.00012571,2]
[400616732,1767747039306,-500.0,0.00012571,2]
[400616734,1767747039315,-500.0,0.00012571,2]
[400616736,1767747039325,-500.0,0.00012571,2]
[400616738,1767747039334,-500.0,0.00012571,2]
[400616740,1767747039344,-500.0,0.00012571,2]
[400616742,1767747039354,-500.0,0.00012571,2]
[400616744,1767747039364,-500.0,0.00012571,2]
[400616746,1767747039373,-500.0,0.00012571,2]
[400616748,1767747039383,-500.0,0.00012571,2]
[400616750,1767747039395,-500.0,0.00012571,2]
[400616752,1767747039405,-500.0,0.00012571,2]
[400616754,1767747039415,-500.0,0.00012571,2]
[400616756,1767747039424,-500.0,0.00012571,2]
[400616758,1767747039436,-454.09738729,0.00012571,2]
[400616760,1767747039447,-500.0,0.00012571,2]
[400616762,1767747039458,-500.0,0.00012571,2]
[400616764,1767747039468,-500.0,0.00012571,2]
[400616766,1767747039477,-500.0,0.00012571,2]
[400616769,1767747039490,-500.0,0.00012571,2]
[400616770,1767747039499,-500.0,0.00012571,2]
[400616772,1767747039508,-500.0,0.00012571,2]
[400616774,1767747039518,-499.99999999,0.00012571,2]
[400616776,1767747039527,-500.0,0.00012571,2]
[400616778,1767747039536,-500.0,0.00012571,2]
[400616780,1767747039546,-500.0,0.00012571,2]
[400616782,1767747039555,-500.0,0.00012571,2]
[400616784,1767747039564,-184.99999999,0.00012571,2]
[400616786,1767747039573,-500.0,0.00012571,2]
[400616788,1767747039582,-500.0,0.00012571,2]
[400616790,1767747039591,-500.0,0.00012571,2]
[400616792,1767747039601,-500.0,0.00012571,2]
[400616794,1767747039611,-500.0,0.00012571,2]
[400616796,1767747039620,-500.0,0.00012571,2]
[400616799,1767747039629,-500.0,0.00012571,2]
[400616801,1767747039638,-500.0,0.00012571,2]
[400616803,1767747039648,-500.0,0.00012571,2]
[400616805,1767747039657,-500.0,0.00012571,2]
[400616807,1767747039667,-500.0,0.00012571,2]
[400616809,1767747039676,-500.0,0.00012571,2]
[400616811,1767747039685,-500.0,0.00012571,2]
[400616812,1767747039695,-500.0,0.00012571,2]
[400616814,1767747039704,-500.0,0.00012571,2]
[400616817,1767747039713,-500.0,0.00012571,2]
[400616818,1767747039723,-500.0,0.00012571,2]
[400616820,1767747039732,-500.0,0.00012571,2]
[400616823,1767747039742,-500.0,0.00012571,2]
[400616824,1767747039751,-500.0,0.00012571,2]
[400616826,1767747039760,-500.0,0.00012571,2]
[400616829,1767747039769,-500.0,0.00012571,2]
[400616831,1767747039778,-500.0,0.00012571,2]
[400616832,1767747039787,-500.0,0.00012571,2]
[400616835,1767747039797,-500.0,0.00012571,2]
[400616836,1767747039806,-500.0,0.00012571,2]
[400616839,1767747039815,-500.0,0.00012571,2]
[400616841,1767747039824,-500.0,0.00012571,2]
[400616843,1767747039833,-500.0,0.00012571,2]
[400616845,1767747039843,-160.28836357,0.00012571,2]
[400616847,1767747039852,-162.3914123,0.00012572,2]
[400616849,1767747039861,-300.0,0.00012574,2]
[400616851,1767747039870,-300.0,0.00012574,2]
[400616852,1767747039880,-300.0,0.00012574,2]
[400616855,1767747039889,-300.0,0.00012574,2]
[400616856,1767747039899,-300.0,0.00012574,2]
[400616859,1767747039908,-300.0,0.00012574,2]
[400616860,1767747039917,-300.0,0.00012574,2]
[400616862,1767747039926,-300.0,0.00012574,2]
[400616864,1767747039935,-300.0,0.00012574,2]
[400616866,1767747039944,-300.0,0.00012574,2]
[400616868,1767747039953,-300.0,0.00012574,2]
[400616871,1767747039963,-300.0,0.00012574,2]
[400616874,1767747039972,-300.0,0.00012574,2]
[400616877,1767747039981,-300.0,0.00012574,2]
[400616880,1767747039991,-300.0,0.00012574,2]
[400616884,1767747040001,-600.0,0.00012824,2]
[400616886,1767747040011,-7578.0,0.00012887,2]
[400616888,1767747040021,-500.0,0.00012891,2]
[400616889,1767747040030,-8773.09793167,0.000129,2]
[400616892,1767747040040,-7578.0,0.00013024,2]
[400616894,1767747040051,-500.0,0.00013028,2]
[400616896,1767747040061,-565.54015029,0.00013099,2]
[400616898,1767747040070,-565.54015029,0.00013099,2]
[400616900,1767747040080,-565.54015029,0.00013099,2]
[400616902,1767747040090,-565.54015029,0.00013099,2]
[400616904,1767747040104,-565.54015029,0.00013099,2]
[400616906,1767747040114,-565.54015029,0.00013099,2]
[400616908,1767747040123,-565.54015029,0.00013099,2]
[400616910,1767747040132,-565.54015029,0.00013099,2]
[400616912,1767747040143,-565.54015029,0.00013099,2]
[400616914,1767747040153,-565.54015029,0.00013099,2]
[400616916,1767747040163,-565.54015029,0.00013099,2]
[400616919,1767747040172,-565.54015029,0.00013099,2]
[400616921,1767747040183,-236.07798956,0.00013099,2]
[400616924,1767747040192,-500.0,0.00013099,2]
[400616926,1767747040202,-565.54015029,0.00013099,2]
[400616928,1767747040212,-500.0,0.00013099,2]
[400616930,1767747040221,-565.54015029,0.00013099,2]
[400616932,1767747040231,-565.54015029,0.00013099,2]
[400616934,1767747040240,-565.54015029,0.00013099,2]
[400616936,1767747040249,-565.54015029,0.00013099,2]
[400616938,1767747040258,-500.0,0.00013099,2]
[400616940,1767747040267,-179.54495006,0.00013099,2]
[400616942,1767747040277,-565.54015029,0.00013099,2]
[400616944,1767747040286,-593.8171578,0.00013099,2]
[400616946,1767747040296,-593.8171578,0.00013099,2]
[400616948,1767747040309,-593.8171578,0.00013099,2]
[400616950,1767747040319,-593.8171578,0.00013099,2]
[400616952,1767747040328,-593.8171578,0.00013099,2]
[400616954,1767747040337,-593.8171578,0.00013099,2]
[400616956,1767747040347,-593.8171578,0.00013099,2]
[400616958,1767747040357,-593.8171578,0.00013099,2]
[400616960,1767747040367,-593.8171578,0.00013099,2]
[400616962,1767747040377,-4999.9182832,0.000131,2]
[400616964,1767747040386,-937.34769694,0.0001312,2]
[400616966,1767747040396,-245.765,0.00013133,2]
[400616967,1767747040406,-7578.0,0.00013161,2]
[400616970,1767747040415,-151.0,0.00013161,2]
[400616972,1767747040425,-151.0,0.00013161,2]
[400616974,1767747040435,-151.0,0.00013161,2]
[400616976,1767747040444,-151.0,0.00013161,2]
[400616977,1767747040453,-151.0,0.00013161,2]
[400616979,1767747040462,-151.0,0.00013161,2]
[400616982,1767747040472,-153.18832837,0.00013161,2]
[400616984,1767747040482,-151.0,0.00013161,2]
[400616986,1767747040491,-151.0,0.00013161,2]
[400616988,1767747040501,-151.0,0.00013161,2]
[400616990,1767747040510,-151.0,0.00013161,2]
[400616992,1767747040519,-151.0,0.00013161,2]
[400616994,1767747040528,-151.0,0.00013161,2]
[400616996,1767747040538,-151.0,0.00013161,2]
[400616998,1767747040548,-151.0,0.00013161,2]
[400617000,1767747040557,-151.0,0.00013161,2]
[400617001,1767747040566,-151.0,0.00013161,2]
[400617003,1767747040575,-151.8201557,0.00013161,2]
[400617005,1767747040584,-500.0,0.00013165,2]
[400617007,1767747040593,-151.0,0.000132,2]
[400617009,1767747040603,-151.0,0.000132,2]
[400617010,1767747040612,-151.0,0.000132,2]
[400617011,1767747040620,-151.0,0.000132,2]
[400617012,1767747040629,-151.0,0.000132,2]
[400617013,1767747040638,-151.0,0.000132,2]
[400617014,1767747040647,-151.0,0.000132,2]
[400617015,1767747040655,-151.0,0.000132,2]
[400617016,1767747040664,-151.0,0.000132,2]
[400617017,1767747040672,-151.0,0.000132,2]
[400617018,1767747040681,-151.0,0.000132,2]
[400617019,1767747040690,-500.0,0.00013273,2]
[400617020,1767747040699,-502.95005986,0.00013273,2]
[400617021,1767747040708,-165.53460267,0.00013273,2]
[400617022,1767747040717,-500.0,0.00013273,2]
[400617023,1767747040726,-500.0,0.00013273,2]
[400617024,1767747040735,-500.0,0.00013273,2]
[400617025,1767747040743,-500.0,0.00013273,2]
[400617026,1767747040752,-500.0,0.00013273,2]
[400617027,1767747040761,-500.75815525,0.00013273,2]
[400617028,1767747040770,-283.37004819,0.00013273,2]
[400617029,1767747040779,-500.0,0.00013273,2]
[400617031,1767747040788,-500.0,0.00013273,2]
[400617033,1767747040797,-500.0,0.00013273,2]
[400617035,1767747040807,-500.0,0.00013273,2]
[400617037,1767747040816,-500.0,0.00013273,2]
[400617039,1767747040825,-500.0,0.00013273,2]
[400617041,1767747040834,-500.0,0.00013273,2]
[400617043,1767747040843,-500.0,0.00013273,2]
[400617045,1767747040852,-606.03605592,0.00013273,2]
[400617047,1767747040861,-500.0,0.00013273,2]
[400617050,1767747040870,-500.0,0.00013273,2]
[400617053,1767747040879,-500.0,0.00013273,2]
[400617055,1767747040888,-500.0,0.00013273,2]
[400617057,1767747040897,-500.0,0.00013273,2]
[400617059,1767747040906,-500.93094912,0.00013273,2]
[400617061,1767747040915,-500.0,0.00013273,2]
[400617063,1767747040924,-500.0,0.00013273,2]
[400617065,1767747040933,-500.0,0.00013273,2]
[400617067,1767747040942,-500.0,0.00013273,2]
[400617069,1767747040951,-500.0,0.00013273,2]
[400617071,1767747040960,-500.0,0.00013273,2]
[400617073,1767747040969,-500.0,0.00013273,2]
[400617075,1767747040978,-428.58199372,0.00013273,2]
[400617077,1767747040987,-167.48106999,0.00013273,2]
[400617079,1767747040995,-500.45942406,0.00013273,2]
[400617081,1767747041005,-500.0,0.00013273,2]
[400617083,1767747041015,-161.85370912,0.00013273,2]
[400617085,1767747041025,-171.59960392,0.00013273,2]
[400617087,1767747041034,-500.0,0.00013273,2]
[400617089,1767747041043,-500.0,0.00013273,2]
[400617091,1767747041054,-500.0,0.00013273,2]
[400617093,1767747041063,-500.0,0.00013273,2]
[400617095,1767747041072,-500.89572759,0.00013273,2]
[400617097,1767747041082,-500.0,0.00013273,2]
[400617099,1767747041091,-500.0,0.00013273,2]
[400617101,1767747041100,-232.41734948,0.00013273,2]
[400617103,1767747041111,-500.0,0.00013273,2]
[400617105,1767747041120,-185.45250914,0.00013273,2]
[400617107,1767747041129,-500.0,0.00013273,2]
[400617109,1767747041138,-500.0,0.00013273,2]
[400617111,1767747041147,-500.0,0.00013273,2]
[400617113,1767747041159,-500.0,0.00013273,2]
[400617115,1767747041168,-500.0,0.00013273,2]
[400617117,1767747041177,-500.0,0.00013273,2]
[400617119,1767747041188,-268.70604187,0.00013273,2]
[400617121,1767747041197,-159.32617446,0.00013273,2]
[400617123,1767747041207,-500.0,0.00013273,2]
[400617124,1767747041216,-500.0,0.00013273,2]
[400617126,1767747041225,-500.0,0.00013273,2]
[400617128,1767747041234,-500.0,0.00013273,2]
[400617131,1767747041244,-500.0,0.00013273,2]
[400617132,1767747041253,-500.0,0.00013273,2]
[400617134,1767747041262,-500.0,0.00013273,2]
[400617136,1767747041270,-210.68917911,0.00013273,2]
[400617138,1767747041280,-500.0,0.00013273,2]
[400617140,1767747041289,-536.41268697,0.00013273,2]
[400617142,1767747041299,-500.49523279,0.00013273,2]
[400617145,1767747041309,-500.0,0.00013273,2]
[400617147,1767747041318,-500.0,0.00013273,2]
[400617148,1767747041328,-500.0,0.00013273,2]
[400617150,1767747041337,-7578.0,0.00013298,2]
[400617152,1767747041347,-155.4754909,0.00013302,2]
[400617154,1767747041356,-500.0,0.00013302,2]
[400617156,1767747041364,-7578.0,0.00013435,2]
[400617158,1767747041373,-200.0,0.00013439,2]
[400617160,1767747041383,-500.0,0.00013439,2]
[400617162,1767747041392,-7578.0,0.00013572,2]
[400617165,1767747041402,-500.0,0.00013576,2]
[400617167,1767747041411,-300.0,0.00013673,2]
[400617168,1767747041421,-3510.39,0.00013698,2]
[400617171,1767747041431,-3510.39,0.00013698,2]
[400617173,1767747041440,-3510.39,0.00013698,2]
[400617175,1767747041449,-3510.39,0.00013698,2]
[400617177,1767747041459,-3510.39,0.00013698,2]
[400617178,1767747041468,-3510.39,0.00013698,2]
[400617180,1767747041477,-3510.39,0.00013698,2]
[400617182,1767747041486,-3510.39,0.00013698,2]
[400617184,1767747041495,-3510.39,0.00013698,2]
[400617187,1767747041504,-3510.39,0.00013698,2]
[400617189,1767747041514,-3510.39,0.00013698,2]